fUST/lending_fUST_20250618
["ID","MTS","AMOUNT","RATE_DAILY","PERIOD"]
[366291877,1750176655209,-2430.68,0.00024164,6]
[366291879,1750176655219,-1365.49,0.00024164,6]
[366291881,1750176655229,-680.3,0.00024164,6]
[366291883,1750176655238,-460.0,0.00024164,6]
[366291885,1750176655248,-1080.8,0.00024164,6]
[366291887,1750176655257,-366.28113671,0.00024164,6]
[366291889,1750176655266,-468.87,0.00024164,6]
[366291891,1750176655276,-460.0,0.00024164,6]
[366291893,1750176655285,-151.0,0.00024164,7]
[366291895,1750176655295,-151.0,0.00024164,7]
[366291897,1750176655304,-2070.74310394,0.00024164,6]
[366291926,1750176655586,-460.0,0.00024109,6]
[366291928,1750176655595,-1243.17689606,0.00024164,6]
[366291930,1750176655605,-460.0,0.00024164,6]
[366291932,1750176655614,-460.0,0.00024164,6]
[366291934,1750176655624,-4717.08,0.00024164,6]
[366291936,1750176655634,-460.0,0.00024164,6]
[366291938,1750176655644,-1552.73,0.00024164,6]
[366291939,1750176655653,-460.0,0.00024164,6]
[366291942,1750176655663,-9386.28,0.00024164,6]
[366291944,1750176655673,-460.0,0.00024164,6]
[366291945,1750176655682,-460.0,0.00024164,6]
[366291947,1750176655694,-709.73,0.00024164,6]
[366291949,1750176655705,-1606.42,0.00024164,6]
[366291951,1750176655714,-2719.42,0.00024164,6]
[366291953,1750176655724,-460.0,0.00024164,6]
[366291956,1750176655735,-440.0,0.00024164,6]
[366291957,1750176655744,-460.0,0.00024164,6]
[366291959,1750176655754,-6688.93,0.00024164,6]
[366291961,1750176655764,-460.0,0.00024164,6]
[366291963,1750176655776,-460.0,0.00024164,6]
[366291966,1750176655786,-162.02634721,0.00024164,6]
[366291968,1750176655796,-460.0,0.00024164,6]
[366291969,1750176655805,-460.0,0.00024164,6]
[366291971,1750176655814,-853.3,0.00024164,6]
[366291973,1750176655823,-460.0,0.00024164,6]
[366291975,1750176655832,-1000.61,0.00024164,6]
[366291977,1750176655842,-539.36,0.00024164,6]
[366291979,1750176655852,-709.76,0.00024164,6]
[366291981,1750176655861,-460.0,0.00024164,6]
[366291983,1750176655871,-460.0,0.00024164,6]
[366291985,1750176655880,-2380.4,0.00024164,6]
[366291987,1750176655890,-605.91,0.00024164,6]
[366291989,1750176655900,-460.0,0.00024164,6]
[366291991,1750176655909,-460.0,0.00024164,6]
[366291993,1750176655919,-1383.57,0.00024164,6]
[366291995,1750176655929,-460.0,0.00024164,6]
[366291997,1750176655938,-460.0,0.00024164,6]
[366291999,1750176655948,-1881.41,0.00024164,6]
[366292000,1750176655958,-460.0,0.00024164,6]
[366292001,1750176655968,-380.28289705,0.00024164,6]
[366292002,1750176655978,-168.73769586,0.00024164,6]
[366292003,1750176655990,-291.26230414,0.00024164,6]
[366292004,1750176655999,-460.0,0.00024164,6]
[366292005,1750176656009,-1663.93,0.00024164,6]
[366292006,1750176656018,-378.29040985,0.00024164,6]
[366292007,1750176656028,-282.65062192,0.00024164,6]
[366292008,1750176656037,-460.0,0.00024164,6]
[366292009,1750176656046,-10432.73,0.00024164,6]
[366292010,1750176656055,-460.0,0.00024164,6]
[366292011,1750176656065,-466.24,0.00024164,6]
[366292012,1750176656074,-2125.97,0.00024164,2]
[366292013,1750176656083,-994.58,0.00024164,6]
[366292014,1750176656092,-460.0,0.00024164,6]
[366292015,1750176656102,-530.30150225,0.00024164,6]
[366292016,1750176656111,-407.76,0.00024164,6]
[366292017,1750176656120,-460.0,0.00024164,6]
[366292018,1750176656129,-460.0,0.00024164,6]
[366292019,1750176656139,-460.0,0.00024164,6]
[366292020,1750176656148,-460.0,0.00024164,6]
[366292021,1750176656158,-9782.59,0.00024164,6]
[366292022,1750176656168,-801.42,0.00024164,6]
[366292023,1750176656177,-2018.76,0.00024164,6]
[366292024,1750176656186,-460.0,0.00024164,6]
[366292025,1750176656197,-1258.96,0.00024164,6]
[366292026,1750176656207,-151.6873509,0.00024164,6]
[366292027,1750176656217,-460.0,0.00024164,6]
[366292028,1750176656226,-558.94,0.00024164,6]
[366292029,1750176656235,-4191.39,0.00024164,6]
[366292030,1750176656245,-460.0,0.00024164,6]
[366292031,1750176656253,-700.01,0.00024164,6]
[366292032,1750176656263,-460.0,0.00024164,6]
[366292033,1750176656272,-460.0,0.00024164,6]
[366292034,1750176656281,-1195.37,0.00024164,6]
[366292035,1750176656291,-1856.28,0.00024164,6]
[366292037,1750176656301,-460.0,0.00024164,6]
[366292039,1750176656310,-460.0,0.00024164,6]
[366292041,1750176656319,-7032.2,0.00024164,6]
[366292043,1750176656329,-3137.14,0.00024164,6]
[366292045,1750176656339,-3760.16,0.00024164,6]
[366292047,1750176656348,-460.0,0.00024164,6]
[366292048,1750176656358,-460.0,0.00024164,6]
[366292050,1750176656368,-460.0,0.00024164,6]
[366292052,1750176656377,-460.0,0.00024164,6]
[366292054,1750176656388,-460.0,0.00024164,6]
[366292056,1750176656398,-691.54,0.00024164,6]
[366292058,1750176656408,-460.0,0.00024164,6]
[366292060,1750176656417,-7407.3,0.00024164,6]
[366292062,1750176656426,-151.0,0.00024165,7]
[366292064,1750176656436,-174.62174543,0.00024165,2]
[366292066,1750176656447,-512.18749651,0.00024173,2]
[366292068,1750176656456,-518.64941684,0.00024173,2]
[366292070,1750176656466,-508.89414585,0.00024176,10]
[366292072,1750176656476,-151.0,0.00024191,6]
[366292074,1750176656486,-151.0,0.00024191,6]
[366292076,1750176656495,-200.819809,0.00024191,7]
[366292078,1750176656505,-200.819809,0.00024191,7]
[366292080,1750176656514,-200.819809,0.00024191,7]
[366292082,1750176656524,-200.819809,0.00024191,7]
[366292084,1750176656533,-151.0,0.00024191,7]
[366292086,1750176656542,-151.0,0.00024191,7]
[366292088,1750176656552,-151.0,0.00024191,7]
[366292090,1750176656562,-151.0,0.00024191,7]
[366292092,1750176656571,-151.778115,0.00024191,7]
[366292094,1750176656581,-325.915866,0.00024191,7]
[366292096,1750176656590,-325.915866,0.00024191,7]
[366292098,1750176656600,-152.188322,0.00024191,7]
[366292100,1750176656609,-151.0,0.00024191,7]
[366292102,1750176656618,-151.0,0.00024191,7]
[366292104,1750176656628,-161.240018,0.00024191,7]
[366292106,1750176656637,-151.0,0.00024191,7]
[366292107,1750176656647,-151.0,0.00024191,7]
[366292110,1750176656656,-432.6615074,0.00024191,6]
[366292111,1750176656666,-589.14819904,0.00024191,6]
[366292113,1750176656675,-151.0,0.00024191,7]
[366292115,1750176656685,-460.0,0.00024191,6]
[366292117,1750176656695,-460.0,0.00024191,6]
[366292119,1750176656708,-380.0,0.00024191,6]
[366292121,1750176656718,-460.0,0.00024191,6]
[366292123,1750176656727,-295.93947889,0.00024191,6]
[366292125,1750176656736,-460.0,0.00024191,6]
[366292127,1750176656746,-514.60386295,0.00024191,6]
[366292129,1750176656756,-460.0,0.00024191,6]
[366292131,1750176656765,-291.0481126,0.00024191,6]
[366292133,1750176656775,-460.0,0.00024191,6]
[366292135,1750176656784,-139.67289412,0.00024191,6]
[366292138,1750176656802,-75.93803766,0.00024191,6]
[366292140,1750176656812,-460.0,0.00024191,6]
[366292142,1750176656822,-460.0,0.00024191,6]
[366292144,1750176656832,-453.63770061,0.00024191,6]
[366292146,1750176656841,-460.0,0.00024191,6]
[366292148,1750176656850,-151.0,0.00024191,7]
[366292150,1750176656860,-151.0,0.00024191,7]
[366292152,1750176656870,-151.0,0.00024191,7]
[366292154,1750176656880,-460.0,0.00024191,6]
[366292167,1750176656999,-460.0,0.00024191,6]
[366292169,1750176657009,-460.0,0.00024191,6]
[366292171,1750176657018,-460.0,0.00024191,6]
[366292173,1750176657028,-460.0,0.00024191,6]
[366292175,1750176657037,-460.0,0.00024191,6]
[366292177,1750176657047,-460.0,0.00024191,6]
[366292179,1750176657056,-152.85391825,0.00024191,6]
[366292181,1750176657066,-151.0,0.00024191,6]
[366292183,1750176657076,-151.0,0.00024191,6]
[366292185,1750176657085,-553.13,0.00024191,6]
[366292187,1750176657095,-163.87460005,0.00024191,6]
[366292189,1750176657104,-500.0,0.00024191,6]
[366292191,1750176657113,-151.0,0.00024191,6]
[366292193,1750176657123,-151.75041417,0.00024191,6]
[366292195,1750176657132,-151.0,0.00024191,6]
[366292197,1750176657142,-166.65707785,0.00024191,6]
[366292198,1750176657151,-151.0,0.00024191,6]
[366292200,1750176657161,-152.14900843,0.00024191,6]
[366292202,1750176657170,-460.0,0.00024191,6]
[366292205,1750176657180,-326.40534522,0.00024191,6]
[366292207,1750176657189,-868.02,0.00024191,6]
[366292208,1750176657200,-460.0,0.00024191,6]
[366292210,1750176657211,-460.0,0.00024191,6]
[366292212,1750176657220,-460.0,0.00024191,6]
[366292214,1750176657229,-151.0,0.00024191,7]
[366292216,1750176657239,-535.24,0.00024191,6]
[366292218,1750176657248,-1238.45,0.00024191,6]
[366292220,1750176657258,-460.0,0.00024191,6]
[366292222,1750176657268,-328.31960802,0.00024191,6]
[366292224,1750176657278,-177.811587,0.00024191,7]
[366292226,1750176657287,-177.811587,0.00024191,7]
[366292228,1750176657296,-460.0,0.00024191,6]
[366292230,1750176657306,-460.0,0.00024191,6]
[366292232,1750176657315,-460.0,0.00024191,6]
[366292234,1750176657325,-460.0,0.00024191,6]
[366292236,1750176657335,-1441.56,0.00024191,2]
[366292238,1750176657345,-151.0,0.00024191,2]
[366292239,1750176657354,-460.0,0.00024191,6]
[366292241,1750176657363,-151.0,0.00024191,2]
[366292243,1750176657372,-1453.46,0.00024191,6]
[366292245,1750176657382,-460.0,0.00024191,6]
[366292247,1750176657391,-460.0,0.00024191,6]
[366292249,1750176657401,-409.54920553,0.00024191,6]
[366292251,1750176657411,-460.0,0.00024191,6]
[366292253,1750176657420,-460.0,0.00024191,6]
[366292255,1750176657429,-460.0,0.00024191,6]
[366292257,1750176657438,-559.28,0.00024191,6]
[366292259,1750176657448,-460.0,0.00024191,6]
[366292261,1750176657457,-460.0,0.00024191,6]
[366292263,1750176657467,-1065.51,0.00024191,6]
[366292265,1750176657476,-460.0,0.00024191,6]
[366292267,1750176657485,-460.0,0.00024191,6]
[366292269,1750176657495,-460.0,0.00024191,6]
[366292271,1750176657505,-460.0,0.00024191,6]
[366292273,1750176657514,-460.0,0.00024191,6]
[366292275,1750176657523,-460.0,0.00024191,6]
[366292277,1750176657533,-460.0,0.00024191,6]
[366292279,1750176657542,-460.0,0.00024191,6]
[366292281,1750176657551,-460.0,0.00024191,6]
[366292283,1750176657561,-1395.71,0.00024191,6]
[366292285,1750176657570,-460.0,0.00024191,6]
[366292287,1750176657579,-460.0,0.00024191,6]
[366292289,1750176657589,-460.0,0.00024191,6]
[366292291,1750176657598,-151.0,0.00024191,7]
[366292293,1750176657608,-460.0,0.00024191,6]
[366292295,1750176657617,-335.04974102,0.00024191,6]
[366292297,1750176657631,-124.95025898,0.00024191,6]
[366292299,1750176657640,-639.5,0.00024191,6]
[366292301,1750176657650,-460.0,0.00024191,6]
[366292303,1750176657659,-468.07,0.00024191,6]
[366292305,1750176657669,-398.93975726,0.00024191,6]
[366292307,1750176657679,-460.0,0.00024191,6]
[366292309,1750176657688,-460.0,0.00024191,6]
[366292311,1750176657699,-462.21512991,0.00024191,6]
[366292313,1750176657710,-460.0,0.00024191,6]
[366292315,1750176657720,-425.15499267,0.00024191,6]
[366292317,1750176657729,-1661.75,0.00024191,6]
[366292319,1750176657738,-460.0,0.00024191,6]
[366292321,1750176657748,-460.0,0.00024191,6]
[366292323,1750176657757,-460.0,0.00024191,6]
[366292325,1750176657766,-460.0,0.00024191,6]
[366292327,1750176657776,-171.15180139,0.00024191,6]
[366292328,1750176657785,-460.0,0.00024191,6]
[366292330,1750176657795,-460.0,0.00024191,6]
[366292332,1750176657805,-460.0,0.00024191,6]
[366292334,1750176657814,-460.0,0.00024191,6]
[366292337,1750176657823,-460.0,0.00024191,6]
[366292338,1750176657833,-460.0,0.00024191,6]
[366292340,1750176657842,-460.0,0.00024191,6]
[366292342,1750176657852,-460.0,0.00024191,6]
[366292344,1750176657862,-460.0,0.00024191,6]
[366292346,1750176657871,-460.0,0.00024191,6]
[366292348,1750176657880,-460.0,0.00024191,6]
[366292350,1750176657890,-460.0,0.00024191,6]
[366292352,1750176657899,-460.0,0.00024191,6]
[366292354,1750176657909,-152.33514378,0.00024191,6]
[366292356,1750176657918,-606.63,0.00024191,6]
[366292358,1750176657927,-460.0,0.00024191,6]
[366292360,1750176657937,-678.42,0.00024191,6]
[366292362,1750176657946,-460.0,0.00024191,6]
[366292364,1750176657956,-460.0,0.00024191,6]
[366292366,1750176657966,-460.0,0.00024191,6]
[366292368,1750176657976,-460.0,0.00024191,6]
[366292370,1750176657986,-151.0,0.00024191,7]
[366292372,1750176657995,-460.0,0.00024191,6]
[366292374,1750176658004,-500.0,0.00024191,6]
[366292376,1750176658014,-460.0,0.00024191,6]
[366292378,1750176658024,-460.0,0.00024191,6]
[366292380,1750176658034,-151.0,0.00024191,7]
[366292382,1750176658043,-460.0,0.00024191,6]
[366292384,1750176658054,-460.0,0.00024191,6]
[366292386,1750176658063,-460.0,0.00024191,6]
[366292388,1750176658072,-460.0,0.00024191,6]
[366292390,1750176658082,-460.0,0.00024191,6]
[366292392,1750176658092,-682.65,0.00024191,6]
[366292394,1750176658102,-460.0,0.00024191,6]
[366292396,1750176658112,-401.33721209,0.00024191,6]
[366292398,1750176658122,-460.0,0.00024191,6]
[366292400,1750176658132,-355.74648125,0.00024191,6]
[366292402,1750176658141,-460.0,0.00024191,6]
[366292404,1750176658151,-151.0,0.00024191,7]
[366292406,1750176658161,-460.0,0.00024191,6]
[366292408,1750176658171,-460.0,0.00024191,6]
[366292410,1750176658180,-313.18652311,0.00024191,6]
[366292412,1750176658189,-460.0,0.00024191,6]
[366292414,1750176658200,-510.72144815,0.00024191,6]
[366292416,1750176658210,-460.0,0.00024191,6]
[366292418,1750176658219,-460.0,0.00024191,6]
[366292420,1750176658228,-460.0,0.00024191,6]
[366292422,1750176658238,-500.0,0.00024191,6]
[366292424,1750176658247,-460.0,0.00024191,6]
[366292426,1750176658256,-460.0,0.00024191,6]
[366292427,1750176658265,-460.0,0.00024191,6]
[366292429,1750176658275,-460.0,0.00024191,6]
[366292431,1750176658284,-733.67743643,0.00024191,6]
[366292434,1750176658298,-988.32256357,0.00024191,6]
[366292436,1750176658307,-460.0,0.00024191,6]
[366292438,1750176658316,-151.0,0.00024191,7]
[366292440,1750176658327,-460.0,0.00024191,6]
[366292442,1750176658337,-197.69833311,0.00024191,6]
[366292444,1750176658346,-460.0,0.00024191,6]
[366292446,1750176658355,-460.0,0.00024191,6]
[366292448,1750176658365,-460.0,0.00024191,6]
[366292450,1750176658374,-460.0,0.00024191,6]
[366292452,1750176658383,-923.15,0.00024191,6]
[366292453,1750176658393,-460.0,0.00024191,6]
[366292456,1750176658403,-531.7,0.00024191,6]
[366292458,1750176658413,-416.16475598,0.00024191,6]
[366292460,1750176658430,-43.83524402,0.00024191,6]
[366292462,1750176658439,-460.0,0.00024191,6]
[366292464,1750176658450,-460.0,0.00024191,6]
[366292466,1750176658459,-460.0,0.00024191,6]
[366292468,1750176658470,-460.0,0.00024191,6]
[366292470,1750176658480,-594.56,0.00024191,6]
[366292472,1750176658490,-460.0,0.00024191,6]
[366292474,1750176658500,-97.44555098,0.00024191,6]
[366292497,1750176658796,-2400.56941447,0.00021245,2]
[366292499,1750176658805,-496.04,0.00024109,6]
[366292501,1750176658814,-460.0,0.00024109,6]
[366292503,1750176658824,-477.92946374,0.00024109,6]
[366292505,1750176658834,-460.0,0.00024136,6]
[366292508,1750176658844,-406.0,0.00024146,2]
[366292509,1750176658854,-460.0,0.00024164,6]
[366292512,1750176658863,-617.18444902,0.00024191,6]
[366292513,1750176658872,-460.0,0.00024191,6]
[366292515,1750176658882,-460.0,0.00024191,6]
[366292517,1750176658891,-460.0,0.00024191,6]
[366292519,1750176658900,-460.0,0.00024191,6]
[366292522,1750176658910,-556.31,0.00024191,6]
[366292523,1750176658919,-460.0,0.00024191,6]
[366292525,1750176658928,-460.0,0.00024191,6]
[366292528,1750176658938,-460.0,0.00024191,6]
[366292529,1750176658947,-2366.84,0.00024191,6]
[366292531,1750176658957,-460.0,0.00024191,6]
[366292533,1750176658967,-460.0,0.00024191,6]
[366292535,1750176658976,-576.83,0.00024191,6]
[366292538,1750176658986,-460.0,0.00024191,6]
[366292540,1750176658995,-460.0,0.00024191,6]
[366292541,1750176659005,-460.0,0.00024191,6]
[366292543,1750176659014,-460.0,0.00024191,6]
[366292545,1750176659023,-460.0,0.00024191,6]
[366292547,1750176659032,-2159.55,0.00024191,6]
[366292549,1750176659042,-151.0,0.00024191,7]
[366292551,1750176659051,-708.47,0.00024191,6]
[366292553,1750176659062,-460.0,0.00024191,6]
[366292555,1750176659071,-280.0,0.00024191,6]
[366292557,1750176659080,-556.57,0.00024191,6]
[366292559,1750176659089,-605.65753707,0.00024191,6]
[366293789,1750177479486,492.147672,0.00013699,2]
[366293837,1750177832132,-5000.0,0.00018662,2]
[366293840,1750177832145,-404.188653,0.00019622,2]
[366293842,1750177832156,-639.9754962,0.00019812,2]
[366293843,1750177832167,-187.083371,0.00019886,2]
[366293844,1750177832177,-164.05153207,0.0002,30]
[366293845,1750177832187,-492.147672,0.00020187,2]
[366293846,1750177832197,-500.0,0.00020492,2]
[366293847,1750177832207,-300.0,0.00020599,2]
[366293848,1750177832218,-1200.0,0.00020599,2]
[366293849,1750177832227,-447.39420527,0.000206,3]
[366293850,1750177832238,-447.394205,0.000206,3]
[366293851,1750177832248,-447.394205,0.000206,3]
[366293852,1750177832257,-447.394205,0.000206,3]
[366293853,1750177832267,-447.394205,0.00020728,3]
[366293854,1750177832276,-447.394205,0.00020934,4]
[366293855,1750177832286,-160.0,0.00021032,2]
[366293856,1750177832296,-180.585,0.00021072,2]
[366293857,1750177832306,-447.394205,0.00021141,4]
[366293858,1750177832318,-464.46813235,0.00021145,5]
[366293859,1750177832327,-686.66545738,0.00021161,2]
[366293900,1750177837957,-418.0000021,0.00021161,2]
[366293902,1750177837969,-23795.33454052,0.00021161,2]
[366293904,1750177837978,-174.62174543,0.00021248,2]
[366293906,1750177837988,-447.394205,0.00021348,5]
[366293908,1750177837998,-207.4,0.00021498,2]
[366293910,1750177838009,-447.394205,0.00021555,5]
[366293912,1750177838018,-835.82910252,0.00021693,2]
[366293914,1750177838027,-845.62440851,0.00021693,2]
[366293916,1750177838036,-160.0,0.00021693,2]
[366293919,1750177838045,-229.94211981,0.00021693,2]
[366293921,1750177838055,-447.394205,0.00021762,5]
[366293923,1750177838065,-447.394205,0.00021969,6]
[366293925,1750177838076,-447.394205,0.00022176,6]
[366293927,1750177838088,-447.394205,0.00022383,7]
[366293929,1750177838098,-727.56,0.00022438,5]
[366293931,1750177838107,-727.56,0.00022538,2]
[366293933,1750177838117,-447.394205,0.0002259,7]
[366293935,1750177838127,-727.56,0.00022638,6]
[366293937,1750177838136,-500.0,0.00022645,2]
[366293939,1750177838145,-500.0,0.00022645,2]
[366293941,1750177838155,-297.6548701,0.00022645,2]
[366293943,1750177838164,-4627.35660939,0.00022646,7]
[366294141,1750177842954,-1369.38584339,0.00019886,2]
[366294195,1750177843697,-732.95754763,0.00019886,2]
[366294438,1750177846052,-5000.0,0.00019687,2]
[366294440,1750177846062,-1161.51652128,0.00019886,2]
[366294442,1750177846071,-3798.56333006,0.00022646,7]
[366294444,1750177846085,-8425.91993945,0.00022646,7]
[366294446,1750177846094,-500.0,0.00022684,2]
[366294448,1750177846103,-727.56,0.00022738,3]
[366294450,1750177846116,-447.394205,0.00022797,7]
[366294452,1750177846126,-727.56,0.00022838,4]
[366294454,1750177846135,-215.0738,0.00022867,2]
[366294456,1750177846145,-727.56,0.00022938,2]
[366294458,1750177846156,-9493.44814843,0.00023,2]
[366294460,1750177846169,-12228.12424161,0.00023,2]
[366294462,1750177846178,-160.0,0.00023,7]
[366294464,1750177846187,-447.394205,0.00023003,8]
[366294466,1750177846197,-727.56,0.00023038,7]
[366294468,1750177846206,-727.56,0.00023138,5]
[366294470,1750177846215,-447.394205,0.0002321,8]
[366294472,1750177846225,-727.56,0.00023238,6]
[366294474,1750177846235,-727.56,0.00023338,7]
[366294477,1750177846245,-447.394205,0.00023417,9]
[366294479,1750177846255,-727.56,0.00023438,6]
[366294481,1750177846265,-727.56,0.00023538,5]
[366294483,1750177846274,-447.394205,0.00023624,9]
[366294485,1750177846284,-727.56,0.00023638,6]
[366294487,1750177846294,-150.0,0.00023711,2]
[366294489,1750177846303,-266.819234,0.00023734,3]
[366294491,1750177846313,-727.56,0.00023738,2]
[366294493,1750177846323,-168.0,0.00023802,2]
[366294495,1750177846332,-447.394205,0.00023831,10]
[366294497,1750177846341,-727.56,0.00023838,2]
[366294499,1750177846351,-168.0,0.00023924,2]
[366294501,1750177846361,-727.56,0.00023938,3]
[366294503,1750177846370,-432.53,0.00024,2]
[366294505,1750177846380,-835.82910252,0.00024,7]
[366294507,1750177846390,-160.0,0.00024,7]
[366294527,1750177846563,-77683.88721115,0.00024,30]
[366294529,1750177846574,-447.394205,0.00024038,10]
[366294531,1750177846584,-727.56,0.00024038,6]
[366294533,1750177846593,-160.0,0.00024108,2]
[366294535,1750177846603,-500.0,0.00024108,2]
[366294537,1750177846612,-500.0,0.00024108,2]
[366294539,1750177846621,-458.91432623,0.00024108,2]
[366294541,1750177846630,-500.0,0.00024108,2]
[366294543,1750177846639,-500.0,0.00024108,2]
[366294545,1750177846648,-500.0,0.00024108,2]
[366294547,1750177846657,-500.0,0.00024108,2]
[366294549,1750177846666,-500.0,0.00024108,2]
[366294551,1750177846675,-500.0,0.00024108,2]
[366294553,1750177846685,-171.86219811,0.00024108,2]
[366294555,1750177846694,-500.0,0.00024108,2]
[366294557,1750177846704,-500.0,0.00024108,2]
[366294558,1750177846713,-500.0,0.00024108,2]
[366294560,1750177846723,-500.0,0.00024108,2]
[366294562,1750177846732,-500.0,0.00024108,2]
[366294564,1750177846741,-500.0,0.00024108,2]
[366294566,1750177846751,-500.0,0.00024108,2]
[366294568,1750177846761,-500.0,0.00024108,2]
[366294570,1750177846770,-500.0,0.00024108,2]
[366294572,1750177846779,-500.0,0.00024108,2]
[366294574,1750177846788,-170.30353868,0.00024108,2]
[366294576,1750177846798,-500.0,0.00024108,2]
[366294578,1750177846806,-250.0,0.00024108,2]
[366294580,1750177846815,-500.0,0.00024108,2]
[366294582,1750177846824,-500.0,0.00024108,2]
[366294584,1750177846834,-336.14451815,0.00024109,6]
[366294586,1750177846844,-460.0,0.00024109,6]
[366294588,1750177846853,-460.0,0.00024109,6]
[366294590,1750177846862,-484.37,0.00024109,6]
[366294592,1750177846871,-504.4,0.00024109,6]
[366294594,1750177846881,-460.0,0.00024109,6]
[366294596,1750177846891,-460.0,0.00024109,6]
[366294598,1750177846900,-460.0,0.00024109,6]
[366294600,1750177846909,-469.47745065,0.00024109,6]
[366294602,1750177846919,-460.0,0.00024109,6]
[366294604,1750177846927,-414.91224036,0.00024109,6]
[366294606,1750177846937,-585.66811992,0.00024109,6]
[366294608,1750177846946,-460.0,0.00024109,6]
[366294610,1750177846956,-460.0,0.00024109,6]
[366294612,1750177846966,-460.0,0.00024109,6]
[366294614,1750177846976,-460.0,0.00024109,6]
[366294616,1750177846986,-460.0,0.00024109,6]
[366294617,1750177846996,-460.0,0.00024109,6]
[366294619,1750177847006,-460.0,0.00024109,6]
[366294621,1750177847016,-460.0,0.00024109,6]
[366294623,1750177847025,-460.0,0.00024109,6]
[366294625,1750177847035,-460.0,0.00024109,6]
[366294627,1750177847044,-460.0,0.00024109,6]
[366294629,1750177847054,-379.19416445,0.00024109,6]
[366294631,1750177847063,-460.0,0.00024109,6]
[366294633,1750177847073,-460.0,0.00024109,6]
[366294635,1750177847086,-460.0,0.00024109,6]
[366294637,1750177847095,-460.0,0.00024109,6]
[366294639,1750177847105,-460.0,0.00024109,6]
[366294641,1750177847114,-460.0,0.00024109,6]
[366294643,1750177847125,-460.0,0.00024109,6]
[366294645,1750177847134,-460.0,0.00024109,6]
[366294647,1750177847143,-274.41050873,0.00024109,6]
[366294649,1750177847152,-358.75539916,0.00024109,6]
[366294651,1750177847163,-460.0,0.00024109,6]
[366294653,1750177847172,-1163.09,0.00024109,6]
[366294655,1750177847182,-460.0,0.00024109,6]
[366294657,1750177847192,-460.0,0.00024109,6]
[366294659,1750177847204,-460.0,0.00024109,6]
[366294661,1750177847214,-370.0,0.00024109,6]
[366294663,1750177847223,-460.0,0.00024109,6]
[366294665,1750177847232,-460.0,0.00024109,6]
[366294667,1750177847242,-460.0,0.00024109,6]
[366294669,1750177847253,-500.0,0.00024109,6]
[366294671,1750177847263,-454.17462625,0.00024109,6]
[366294673,1750177847273,-460.0,0.00024109,6]
[366294674,1750177847284,-460.0,0.00024109,6]
[366294676,1750177847295,-387.25884552,0.00024109,6]
[366294678,1750177847306,-460.0,0.00024109,6]
[366294680,1750177847317,-258.42818796,0.00024109,6]
[366294682,1750177847328,-440.04488353,0.00024109,6]
[366294684,1750177847341,-460.0,0.00024109,6]
[366294686,1750177847352,-460.0,0.00024109,6]
[366294688,1750177847362,-440.14274817,0.00024109,6]
[366294690,1750177847373,-460.0,0.00024109,6]
[366294692,1750177847383,-460.0,0.00024109,6]
[366294694,1750177847393,-460.0,0.00024109,6]
[366294696,1750177847404,-460.0,0.00024109,6]